fUSD/lending_fUSD_20250223
["ID","MTS","AMOUNT","RATE_DAILY","PERIOD"]
[354215817,1740349905988,-1240.88,0.0001726,2]
[354215818,1740349905997,-782.65,0.0001726,2]
[354215819,1740349906007,-1118.85,0.0001726,2]
[354215820,1740349906016,-500.0,0.0001726,2]
[354215821,1740349906025,-500.0,0.0001726,2]
[354215822,1740349906035,-500.0,0.0001726,2]
[354215823,1740349906044,-1621.04,0.0001726,2]
[354215824,1740349906054,-614.67,0.0001726,2]
[354215825,1740349906063,-1198.36,0.0001726,2]
[354215826,1740349906072,-500.0,0.0001726,2]
[354215827,1740349906081,-608.12,0.0001726,2]
[354215828,1740349906091,-564.11,0.0001726,2]
[354215829,1740349906100,-500.0,0.0001726,2]
[354215830,1740349906110,-500.0,0.0001726,2]
[354215831,1740349906119,-500.0,0.0001726,2]
[354215832,1740349906129,-500.0,0.0001726,2]
[354215833,1740349906138,-500.0,0.0001726,2]
[354215834,1740349906147,-904.88,0.0001726,2]
[354215835,1740349906156,-500.0,0.0001726,2]
[354215836,1740349906166,-503.91,0.0001726,2]
[354215837,1740349906175,-500.0,0.0001726,2]
[354215838,1740349906184,-500.0,0.0001726,2]
[354215839,1740349906194,-679.91,0.0001726,2]
[354215840,1740349906203,-550.2,0.0001726,2]
[354215841,1740349906212,-795.19,0.0001726,2]
[354215842,1740349906222,-500.0,0.0001726,2]
[354215843,1740349906231,-1739.38,0.0001726,2]
[354215844,1740349906240,-748.37,0.0001726,2]
[354215845,1740349906249,-500.0,0.0001726,2]
[354215846,1740349906261,-708.49,0.0001726,2]
[354215847,1740349906272,-620.41,0.0001726,2]
[354215848,1740349906281,-500.0,0.0001726,2]
[354215849,1740349906291,-500.0,0.0001726,2]
[354215850,1740349906300,-677.65,0.0001726,2]
[354215851,1740349906310,-681.58,0.0001726,2]
[354215852,1740349906319,-500.0,0.0001726,2]
[354215853,1740349906328,-514.07,0.0001726,2]
[354215854,1740349906338,-1558.42,0.0001726,2]
[354215855,1740349906358,-500.0,0.0001726,2]
[354215856,1740349906367,-500.0,0.0001726,2]
[354215857,1740349906376,-602.81,0.0001726,2]
[354215858,1740349906385,-1016.25,0.0001726,2]
[354215859,1740349906395,-281.23353531,0.0001726,2]
[354215860,1740349906404,-565.85,0.0001726,2]
[354215861,1740349906414,-708.16,0.0001726,2]
[354215862,1740349906424,-500.0,0.0001726,2]
[354215863,1740349906434,-512.95,0.0001726,2]
[354215864,1740349906445,-500.0,0.0001726,2]
[354215865,1740349906455,-563.72,0.0001726,2]
[354215866,1740349906465,-1362.33,0.0001726,2]
[354215867,1740349906474,-493.7701603,0.0001726,2]
[354215868,1740349906484,-1012.62,0.0001726,2]
[354215869,1740349906493,-1837.84,0.0001726,2]
[354215870,1740349906503,-2529.64,0.0001726,2]
[354215871,1740349906513,-500.0,0.0001726,2]
[354215872,1740349906526,-238.79797199,0.0001726,2]
[354215873,1740349906535,-500.0,0.0001726,2]
[354215874,1740349906545,-500.0,0.0001726,2]
[354215875,1740349906554,-783.76,0.0001726,2]
[354215876,1740349906564,-545.27,0.0001726,2]
[354215877,1740349906575,-1030.81,0.0001726,2]
[354215878,1740349906584,-500.37,0.0001726,2]
[354215879,1740349906595,-500.0,0.0001726,2]
[354215880,1740349906604,-717.32,0.0001726,2]
[354215881,1740349906613,-797.57,0.0001726,2]
[354215882,1740349906623,-578.44,0.0001726,2]
[354215883,1740349906633,-500.0,0.0001726,2]
[354215884,1740349906643,-756.75,0.0001726,2]
[354215885,1740349906653,-1497.62,0.0001726,2]
[354215886,1740349906663,-1770.57,0.0001726,2]
[354215887,1740349906673,-784.78,0.0001726,2]
[354215888,1740349906683,-1765.88,0.0001726,2]
[354215889,1740349906692,-2582.73,0.0001726,2]
[354215890,1740349906702,-500.0,0.0001726,2]
[354215891,1740349906712,-564.37,0.0001726,2]
[354215892,1740349906721,-1422.48,0.0001726,2]
[354215893,1740349906731,-500.0,0.0001726,2]
[354215894,1740349906740,-2229.59,0.0001726,2]
[354215895,1740349906750,-500.0,0.0001726,2]
[354215896,1740349906759,-1800.36,0.0001726,2]
[354215897,1740349906768,-341.29546412,0.0001726,2]
[354215898,1740349906778,-2222.23,0.0001726,2]
[354215899,1740349906788,-500.0,0.0001726,2]
[354215900,1740349906798,-500.0,0.0001726,2]
[354215901,1740349906807,-564.96,0.0001726,2]
[354215902,1740349906817,-500.0,0.0001726,2]
[354215903,1740349906827,-681.63,0.0001726,2]
[354215904,1740349906836,-500.0,0.0001726,2]
[354215905,1740349906846,-558.55,0.0001726,2]
[354215906,1740349906855,-1629.15,0.0001726,2]
[354215907,1740349906865,-1542.47,0.0001726,2]
[354215908,1740349906874,-561.05,0.0001726,2]
[354215909,1740349906884,-738.85,0.0001726,2]
[354215910,1740349906893,-2269.58,0.0001726,2]
[354215911,1740349906903,-868.84,0.0001726,2]
[354215912,1740349906913,-1335.0,0.0001726,2]
[354215913,1740349906922,-1672.07,0.0001726,2]
[354215914,1740349906931,-2109.65,0.0001726,2]
[354215915,1740349906941,-1086.37,0.0001726,2]
[354215916,1740349906952,-1704.59,0.0001726,2]
[354215917,1740349906961,-691.82,0.0001726,2]
[354215918,1740349906972,-1370.41,0.0001726,2]
[354215919,1740349906982,-500.0,0.0001726,2]
[354215920,1740349906993,-781.08,0.0001726,2]
[354215921,1740349907002,-650.9,0.0001726,2]
[354215922,1740349907011,-1228.32,0.0001726,2]
[354215923,1740349907023,-2394.76,0.0001726,2]
[354215924,1740349907034,-551.29,0.0001726,2]
[354215925,1740349907044,-500.0,0.0001726,2]
[354215926,1740349907054,-500.0,0.0001726,2]
[354215927,1740349907063,-635.58,0.0001726,2]
[354215928,1740349907072,-1100.86,0.0001726,2]
[354215929,1740349907082,-1495.46,0.0001726,2]
[354215930,1740349907093,-500.0,0.0001726,2]
[354215931,1740349907103,-991.31,0.0001726,2]
[354215932,1740349907113,-693.94,0.0001726,2]
[354215933,1740349907123,-776.59,0.0001726,2]
[354215934,1740349907133,-1548.96,0.0001726,2]
[354215935,1740349907144,-500.0,0.0001726,2]
[354215936,1740349907153,-623.46,0.0001726,2]
[354215937,1740349907163,-500.0,0.0001726,2]
[354215938,1740349907174,-2549.36,0.0001726,2]
[354215939,1740349907183,-500.0,0.0001726,2]
[354215940,1740349907193,-500.0,0.0001726,2]
[354215941,1740349907323,-1703.42,0.0001726,2]
[354215942,1740349907334,-869.03,0.0001726,2]
[354215943,1740349907344,-563.36,0.0001726,2]
[354215944,1740349907354,-500.0,0.0001726,2]
[354215945,1740349907364,-960.88,0.0001726,2]
[354215946,1740349907373,-500.0,0.0001726,2]
[354215947,1740349907383,-1037.4,0.0001726,2]
[354215948,1740349907392,-2267.54,0.0001726,2]
[354215949,1740349907401,-1420.41,0.0001726,2]
[354215950,1740349907411,-535.56,0.0001726,2]
[354215951,1740349907420,-1222.57,0.0001726,2]
[354215952,1740349907429,-3008.1,0.0001726,2]
[354215953,1740349907438,-786.04,0.0001726,2]
[354215954,1740349907452,-582.21,0.0001726,2]
[354215955,1740349907461,-1442.37,0.0001726,2]
[354215956,1740349907471,-507.67,0.0001726,2]
[354215957,1740349907480,-1449.59,0.0001726,2]
[354215958,1740349907489,-500.0,0.0001726,2]
[354215959,1740349907498,-1488.88,0.0001726,2]
[354215960,1740349907508,-1426.91,0.0001726,2]
[354215961,1740349907517,-500.0,0.0001726,2]
[354215962,1740349907529,-2442.27,0.0001726,2]
[354215963,1740349907538,-2283.06,0.0001726,2]
[354215964,1740349907547,-3372.27,0.0001726,2]
[354215965,1740349907556,-500.0,0.0001726,2]
[354215966,1740349907566,-1222.2,0.0001726,2]
[354215967,1740349907575,-1507.49,0.0001726,2]
[354215968,1740349907584,-602.88,0.0001726,2]
[354215969,1740349907593,-500.0,0.0001726,2]
[354215970,1740349907603,-1664.77,0.0001726,2]
[354215971,1740349907612,-1154.78,0.0001726,2]
[354215972,1740349907622,-1756.63,0.0001726,2]
[354215973,1740349907631,-536.34,0.0001726,2]
[354215974,1740349907640,-986.27,0.0001726,2]
[354215975,1740349907649,-1157.96,0.0001726,2]
[354215976,1740349907659,-1016.26,0.0001726,2]
[354215977,1740349907668,-923.34,0.0001726,2]
[354215978,1740349907677,-1532.84,0.0001726,2]
[354215979,1740349907687,-1904.49,0.0001726,2]
[354215980,1740349907696,-500.0,0.0001726,2]
[354215981,1740349907705,-1326.46,0.0001726,2]
[354215982,1740349907714,-801.78,0.0001726,2]
[354215983,1740349907724,-612.54,0.0001726,2]
[354215984,1740349907733,-1334.47,0.0001726,2]
[354215985,1740349907742,-590.04,0.0001726,2]
[354215986,1740349907751,-1385.79,0.0001726,2]
[354215987,1740349907760,-500.0,0.0001726,2]
[354215988,1740349907770,-2494.38,0.0001726,2]
[354215989,1740349907780,-1090.53,0.0001726,2]
[354215990,1740349907790,-507.42,0.0001726,2]
[354215991,1740349907799,-500.0,0.0001726,2]
[354215992,1740349907808,-1543.81,0.0001726,2]
[354215993,1740349907818,-573.47,0.0001726,2]
[354215994,1740349907827,-1095.55,0.0001726,2]
[354215995,1740349907837,-649.03,0.0001726,2]
[354215996,1740349907846,-2049.23,0.0001726,2]
[354215997,1740349907855,-500.0,0.0001726,2]
[354215998,1740349907864,-646.72,0.0001726,2]
[354215999,1740349907873,-1521.96,0.0001726,2]
[354216000,1740349907883,-3220.12,0.0001726,2]
[354216001,1740349907892,-1456.53,0.0001726,2]
[354216002,1740349907901,-500.0,0.0001726,2]
[354216003,1740349907911,-500.0,0.0001726,2]
[354216004,1740349907920,-1723.53,0.0001726,2]
[354216005,1740349907930,-500.0,0.0001726,2]
[354216006,1740349907939,-2211.51,0.0001726,2]
[354216007,1740349907948,-1135.98,0.0001726,2]
[354216008,1740349907958,-2287.56,0.0001726,2]
[354216009,1740349907968,-743.91,0.0001726,2]
[354216010,1740349907977,-1305.88,0.0001726,2]
[354216011,1740349907987,-684.25,0.0001726,2]
[354216012,1740349907996,-3463.87,0.0001726,2]
[354216013,1740349908005,-1527.29,0.0001726,2]
[354216014,1740349908014,-500.0,0.0001726,2]
[354216015,1740349908023,-641.03,0.0001726,2]
[354216016,1740349908032,-1385.92,0.0001726,2]
[354216017,1740349908041,-3565.44,0.0001726,2]
[354216018,1740349908050,-500.0,0.0001726,2]
[354216019,1740349908059,-500.0,0.0001726,2]
[354216020,1740349908068,-2201.89,0.0001726,2]
[354216021,1740349908077,-500.0,0.0001726,2]
[354216022,1740349908087,-798.67,0.0001726,2]
[354216023,1740349908097,-3735.7,0.0001726,2]
[354216024,1740349908106,-2015.41,0.0001726,2]
[354216025,1740349908115,-1466.3,0.0001726,2]
[354216026,1740349908124,-640.38,0.0001726,2]
[354216027,1740349908134,-2161.56,0.0001726,2]
[354216028,1740349908143,-1420.45,0.0001726,2]
[354216029,1740349908154,-2440.94,0.0001726,2]
[354216030,1740349908163,-2120.49,0.0001726,2]
[354216031,1740349908173,-833.49,0.0001726,2]
[354216032,1740349908182,-1351.27,0.0001726,2]
[354216033,1740349908191,-1892.36,0.0001726,2]
[354216034,1740349908201,-1018.29,0.0001726,2]
[354216035,1740349908210,-1914.53,0.0001726,2]
[354216036,1740349908219,-751.94,0.0001726,2]
[354216037,1740349908229,-1195.11,0.0001726,2]
[354216038,1740349908238,-2313.01,0.0001726,2]
[354216039,1740349908247,-937.55,0.0001726,2]
[354216040,1740349908256,-1603.29,0.0001726,2]
[354216041,1740349908265,-2460.28,0.0001726,2]
[354216042,1740349908274,-2684.81,0.0001726,2]
[354216043,1740349908283,-1639.9,0.0001726,2]
[354216044,1740349908292,-664.68,0.0001726,2]
[354216045,1740349908302,-640.97,0.0001726,2]
[354216046,1740349908311,-500.0,0.0001726,2]
[354216047,1740349908320,-2460.9,0.0001726,2]
[354216048,1740349908330,-1119.51,0.0001726,2]
[354216049,1740349908339,-1461.34,0.0001726,2]
[354216050,1740349908348,-566.65,0.0001726,2]
[354216051,1740349908358,-1538.59,0.0001726,2]
[354216052,1740349908367,-814.92035385,0.0001726,2]
[354216053,1740349908712,-63.97964615,0.0001726,2]
[354216054,1740349908722,-1824.04,0.0001726,2]
[354216055,1740349908732,-500.0,0.0001726,2]
[354216056,1740349908742,-1470.35,0.0001726,2]
[354216057,1740349908752,-1582.89,0.0001726,2]
[354216058,1740349908762,-1847.63,0.0001726,2]
[354216059,1740349908772,-2678.53,0.0001726,2]
[354216060,1740349908782,-769.48,0.0001726,2]
[354216061,1740349908791,-554.7,0.0001726,2]
[354216062,1740349908801,-995.83,0.0001726,2]
[354216063,1740349908812,-1610.42,0.0001726,2]
[354216064,1740349908822,-1338.31,0.0001726,2]
[354216065,1740349908831,-500.0,0.0001726,2]
[354216066,1740349908841,-1308.01,0.0001726,2]
[354216067,1740349908852,-1717.52,0.0001726,2]
[354216068,1740349908862,-3188.14,0.0001726,2]
[354216069,1740349908872,-3533.31,0.0001726,2]
[354216070,1740349908881,-500.0,0.0001726,2]
[354216071,1740349908890,-1861.78,0.0001726,2]
[354216072,1740349908899,-8417.52,0.0001726,2]
[354216073,1740349908909,-2577.89,0.0001726,2]
[354216074,1740349908918,-500.0,0.0001726,2]
[354216075,1740349908927,-500.0,0.0001726,2]
[354216076,1740349908937,-500.0,0.0001726,2]
[354216077,1740349908946,-4381.0,0.0001726,2]
[354216078,1740349908955,-596.64,0.0001726,2]
[354216079,1740349908964,-2183.26,0.0001726,2]
[354216080,1740349908974,-1528.29,0.0001726,2]
[354216081,1740349908984,-1092.71,0.0001726,2]
[354216082,1740349908993,-554.44,0.0001726,2]
[354216083,1740349909003,-1946.14,0.0001726,2]
[354216084,1740349909012,-2935.59,0.0001726,2]
[354216085,1740349909022,-7337.03,0.0001726,2]
[354216086,1740349909031,-1364.9,0.0001726,2]
[354216087,1740349909041,-1174.78,0.0001726,2]
[354216088,1740349909051,-1276.51,0.0001726,2]
[354216089,1740349909060,-620.99,0.0001726,2]
[354216090,1740349909070,-1306.34,0.0001726,2]
[354216091,1740349909080,-932.88,0.0001726,2]
[354216092,1740349909089,-2300.34,0.0001726,2]
[354216093,1740349909099,-980.06,0.0001726,2]
[354216094,1740349909108,-1469.11,0.0001726,2]
[354216095,1740349909118,-544.26,0.0001726,2]
[354216096,1740349909127,-2856.88,0.0001726,2]
[354216097,1740349909136,-4641.82,0.0001726,2]
[354216098,1740349909146,-3029.62,0.0001726,2]
[354216099,1740349909155,-500.0,0.0001726,2]
[354216100,1740349909165,-2673.9,0.0001726,2]
[354216101,1740349909175,-500.0,0.0001726,2]
[354216102,1740349909184,-612.94,0.0001726,2]
[354216103,1740349909195,-500.0,0.0001726,2]
[354216104,1740349909205,-3094.41,0.0001726,2]
[354216105,1740349909215,-2414.59,0.0001726,2]
[354216106,1740349909224,-606.49071434,0.0001726,2]
[354216107,1740349909234,-693.42,0.0001726,2]
[354216108,1740349909244,-2972.96,0.0001726,2]
[354216109,1740349909253,-1574.92,0.0001726,2]
[354216110,1740349909263,-1174.07,0.0001726,2]
[354216111,1740349909273,-5022.74,0.0001726,2]
[354216112,1740349909283,-906.72,0.0001726,2]
[354216113,1740349909292,-500.0,0.0001726,2]
[354216114,1740349909301,-796.67,0.0001726,2]
[354216115,1740349909311,-500.0,0.0001726,2]
[354216116,1740349909320,-5290.33,0.0001726,2]
[354216117,1740349909330,-1436.11,0.0001726,2]
[354216118,1740349909339,-350.76706235,0.0001726,2]
[354216119,1740349909349,-1349.8,0.0001726,2]
[354216120,1740349909358,-758.05,0.0001726,2]
[354216121,1740349909368,-2671.9,0.0001726,2]
[354216122,1740349909377,-5756.72,0.0001726,2]
[354216123,1740349909387,-2196.52,0.0001726,2]
[354216124,1740349909396,-4403.16,0.0001726,2]
[354216125,1740349909406,-2749.58,0.0001726,2]
[354216126,1740349909416,-526.21,0.0001726,2]
[354216127,1740349909425,-555.29,0.0001726,2]
[354216128,1740349909435,-2415.31,0.0001726,2]
[354216129,1740349909446,-500.0,0.0001726,2]
[354216130,1740349909456,-3407.13,0.0001726,2]
[354216131,1740349909465,-1418.97,0.0001726,2]
[354216132,1740349909475,-4562.56,0.0001726,2]
[354216133,1740349909485,-500.0,0.0001726,2]
[354216134,1740349909496,-760.69,0.0001726,2]
[354216135,1740349909505,-1428.34,0.0001726,2]
[354216136,1740349909515,-874.66,0.0001726,2]
[354216137,1740349909529,-2154.67,0.0001726,2]
[354216138,1740349909538,-4107.53,0.0001726,2]
[354216139,1740349909548,-1748.41,0.0001726,2]
[354216140,1740349909558,-1576.33,0.0001726,2]
[354216141,1740349909567,-500.0,0.0001726,2]
[354216142,1740349909576,-17475.75,0.0001726,2]
[354216143,1740349909586,-500.0,0.0001726,2]
[354216144,1740349909595,-4070.64,0.0001726,2]
[354216145,1740349909605,-2786.27,0.0001726,2]
[354216146,1740349909616,-3159.81,0.0001726,2]
[354216147,1740349909625,-924.33,0.0001726,2]
[354216148,1740349909635,-709.02,0.0001726,2]
[354216149,1740349909644,-2272.18,0.0001726,2]
[354216150,1740349909653,-490.65421471,0.0001726,2]
[354216151,1740349910265,-500.0,0.00016438,2]
[354216152,1740349910275,-26.72999996,0.00016438,2]
[354216153,1740349910337,-473.27000004,0.00016438,2]
[354216154,1740349910347,-380.42915146,0.00016438,2]
[354216155,1740349910590,-278.16,0.00016055,2]
[354216156,1740349910600,-119.57084854,0.00016438,2]
[354216157,1740349910610,-143.64938432,0.00016438,2]
[354216158,1740349910630,-356.35061568,0.00016438,2]
[354216159,1740349910640,-478.23884858,0.00016438,2]
[354216160,1740349910650,-500.0,0.00016438,2]
[354216161,1740349910661,-500.0,0.00016438,2]
[354216162,1740349910670,-500.0,0.00016438,2]
[354216163,1740349910680,-500.0,0.00016438,2]
[354216164,1740349910689,-1219.44,0.00016438,2]
[354216165,1740349910699,-500.0,0.00016438,2]
[354216166,1740349910709,-500.0,0.00016438,2]
[354216167,1740349910718,-1766.0,0.00016504,2]
[354216168,1740349910728,-500.0,0.0001652,2]
[354216169,1740349910737,-500.0,0.0001652,2]
[354216170,1740349910747,-500.0,0.0001652,2]
[354216171,1740349910756,-500.0,0.0001652,2]
[354216172,1740349910766,-351.74,0.0001652,2]
[354216173,1740349910775,-500.0,0.0001652,2]
[354216174,1740349910785,-1219.44,0.0001652,2]
[354216175,1740349910795,-55.29254098,0.0001652,2]
[354216176,1740349910880,-444.70745902,0.0001652,2]
[354216177,1740349910890,-99.90371675,0.00016594,2]
[354216178,1740349910904,-510.5,0.00016594,2]
[354216180,1740350252314,155.26,8.767e-05,2]
[354216181,1740350886044,1000.0,0.0002048,120]
[354216182,1740350903073,10000.0,0.0002048,120]
[354216183,1740350925872,10000.0,0.0002048,120]
[354216184,1740350936504,10000.0,0.0002048,120]
[354216185,1740350948370,10000.0,0.0002048,120]
[354216186,1740350961459,20000.0,0.00020483,120]
[354216187,1740350969358,20000.0,0.00020483,120]
[354216188,1740350979196,20000.0,0.00020483,120]
[354216189,1740351016759,20000.0,0.00020483,120]
[354216190,1740351025712,20000.0,0.00020483,120]
[354216202,1740351032241,-1480.60432055,0.00010858,2]
[354216203,1740351032279,-317.55735499,0.00010858,2]
[354216204,1740351032288,-17.22959223,0.00010932,2]
[354216205,1740351032317,-132.77040777,0.00010932,2]
[354216206,1740351032327,-500.0,0.00010944,2]
[354216207,1740351032336,-153.319348,0.00010958,2]
[354216208,1740351032346,-156.722948,0.00010958,2]
[354216209,1740351032355,-156.025336,0.00010958,2]
[354216210,1740351032364,-153.319349,0.00010958,2]
[354216211,1740351032373,-223.637732,0.00010958,2]
[354216212,1740351032381,-183.924071,0.00010958,2]
[354216213,1740351032391,-223.637731,0.00010958,2]
[354216214,1740351032400,-183.924072,0.00010958,2]
[354216215,1740351032409,-153.712272,0.00010958,2]
[354216216,1740351032419,-151.459647,0.00010958,2]
[354216217,1740351032428,-183.924071,0.00010958,2]
[354216218,1740351032437,-223.637731,0.00010958,2]
[354216219,1740351032447,-173.853472,0.00010958,2]
[354216220,1740351032456,-169.825232,0.00010958,2]
[354216221,1740351032465,-152.147152,0.00010958,2]
[354216222,1740351032474,-166.177615,0.00010958,2]
[354216223,1740351032483,-156.722949,0.00010958,2]
[354216224,1740351032493,-15094.13409756,0.00010958,2]
[354216225,1740351032502,-500.0,0.00011035,2]
[354216226,1740351032512,-153.319348,0.00011123,2]
[354216227,1740351032523,-156.025336,0.00011123,2]
[354216228,1740351032533,-153.319349,0.00011205,2]
[354216229,1740351032543,-166.177615,0.00011205,2]
[354216230,1740351032552,-156.025336,0.00011287,2]
[354216231,1740351032561,-5000.0,0.0001134,2]
[354216232,1740351032570,-5000.0,0.0001134,2]
[354216233,1740351032579,-5000.0,0.0001134,2]
[354216234,1740351032588,-5000.0,0.0001134,2]
[354216235,1740351032597,-153.319348,0.00011369,2]
[354216236,1740351032606,-173.853472,0.00011369,2]
[354216237,1740351032615,-500.0,0.00012025,2]
[354216238,1740351032624,-534.86,0.000131,2]
[354216239,1740351032633,-629.44,0.00015065,2]
[354216240,1740351032642,-150.0,0.0001509,2]
[354216241,1740351032652,-150.0,0.0001509,2]
[354216242,1740351032660,-150.0,0.0001509,2]
[354216243,1740351032669,-150.0,0.0001509,2]
[354216244,1740351032679,-150.0,0.0001509,2]
[354216245,1740351032688,-150.0,0.000153,2]
[354216246,1740351032697,-534.86,0.00015364,2]
[354216248,1740351032706,-306.57,0.00015429,2]
[354216250,1740351032715,-250.0,0.00015442,2]
[354216252,1740351032724,-1000.0,0.00015462,2]
[354216254,1740351032734,-414.23,0.000155,2]
[354216256,1740351032743,-150.0,0.0001551,2]
[354216258,1740351032752,-150.0,0.0001551,2]
[354216260,1740351032761,-504.73,0.00015545,2]
[354216262,1740351032770,-500.0,0.00015567,2]
[354216264,1740351032779,-200.0,0.00015601,2]
[354216266,1740351032788,-163.9,0.00015704,2]
[354216268,1740351032797,-150.0,0.00015719,2]
[354216270,1740351032807,-169.79,0.00015847,2]
[354216272,1740351032820,-150.0,0.00015929,2]
[354216274,1740351032829,-150.0,0.00015929,2]
[354216276,1740351032838,-150.0,0.00016138,2]
[354216278,1740351032847,-536.94898989,0.00016238,2]
[354216280,1740351032856,-150.0,0.00016238,2]
[354216289,1740351033022,-670.4877,0.00016238,2]
[354216291,1740351033034,-739.36,0.00016267,7]
[354216293,1740351033044,-739.36,0.00016267,7]
[354216295,1740351033053,-739.36,0.00016267,7]
[354216297,1740351033063,-739.36,0.00016267,7]
[354216299,1740351033072,-312.0633,0.0001632,2]
[354216301,1740351033081,-252.13,0.0001632,2]
[354216303,1740351033090,-266.8788,0.0001632,2]
[354216305,1740351033100,-3082.32532651,0.00016337,2]
[354216307,1740351033110,-3426.14755421,0.00016338,2]
[354216309,1740351033119,-2326.6617,0.00016338,2]
[354216311,1740351033128,-3319.7998,0.00016338,2]
[354216313,1740351033138,-1944.6488,0.00016338,2]
[354216315,1740351033148,-7500.0,0.00016338,2]
[354216317,1740351033157,-1000.0,0.00016338,2]
[354216319,1740351033166,-2500.0,0.00016338,2]
[354216321,1740351033175,-150.0,0.00016348,2]
[354216323,1740351033184,-150.0,0.00016348,2]
[354216325,1740351033194,-172.063,0.00016382,2]
[354216326,1740351033204,-795.0,0.00016382,2]
[354216328,1740351033214,-784.0,0.00016382,2]
[354216330,1740351033223,-1266.0,0.00016382,2]
[354216332,1740351033233,-4031.0,0.00016382,2]
[354216334,1740351033242,-562.896,0.00016382,2]
[354216336,1740351033251,-22898.99559507,0.000164,3]
[354216338,1740351033261,-1384.84318256,0.00016402,2]
[354216340,1740351033271,-3426.14755416,0.00016411,2]
[354216342,1740351033281,-500.0,0.0001642,2]
[354216344,1740351033290,-2959.8985,0.0001642,2]
[354216346,1740351033300,-36284.034,0.0001642,2]
[354216348,1740351033309,-2469.39658231,0.0001642,2]
[354216350,1740351033319,-200.0,0.00016428,2]
[354216352,1740351033329,-500.0,0.00016437,2]
[354216354,1740351033338,-500.0,0.00016437,2]
[354216356,1740351033348,-500.0,0.00016437,2]
[354216358,1740351033358,-500.0,0.00016437,2]
[354216360,1740351033367,-500.0,0.00016437,2]
[354216362,1740351033377,-500.0,0.00016437,2]
[354216365,1740351033387,-500.0,0.00016437,2]
[354216367,1740351033396,-500.0,0.00016437,2]
[354216369,1740351033406,-246.22464776,0.00016437,2]
[354216371,1740351033415,-500.0,0.00016437,2]
[354216373,1740351033424,-500.0,0.00016437,2]
[354216375,1740351033434,-500.0,0.00016437,2]
[354216376,1740351033443,-500.0,0.00016437,2]
[354216378,1740351033453,-500.0,0.00016437,2]
[354216380,1740351033462,-500.0,0.00016437,2]
[354216382,1740351033472,-500.0,0.00016437,2]
[354216384,1740351033481,-500.0,0.00016437,2]
[354216386,1740351033490,-500.0,0.00016437,2]
[354216389,1740351033500,-156.17945829,0.00016437,2]
[354216391,1740351033509,-500.0,0.00016437,2]
[354216393,1740351033518,-488.18557031,0.00016437,2]
[354216394,1740351033527,-164.98994692,0.00016437,2]
[354216397,1740351033536,-428.0970991,0.00016437,2]
[354216398,1740351033545,-500.0,0.00016437,2]
[354216401,1740351033556,-462.90242866,0.00016437,2]
[354216403,1740351033565,-361.78357167,0.00016438,2]
[354216405,1740351033574,-500.0,0.00016438,2]
[354216407,1740351033583,-500.0,0.00016438,2]
[354216409,1740351033593,-500.0,0.00016438,2]
[354216410,1740351033603,-500.0,0.00016438,2]
[354216412,1740351033612,-417.14166517,0.00016438,2]
[354216415,1740351033621,-151.0,0.00016438,2]
[354216417,1740351033630,-151.0,0.00016438,2]